bitfinex-derivatives/quotes_BTCF0:USTF0_20241116
["timestamp","ask_amount","ask_price","bid_price","bid_amount"]
[1731773042422,0.055269,90434.0,90429.0,0.055272]
[1731773042621,0.055269,90434.0,90431.0,0.055271]
[1731773043225,0.055269,90434.0,90432.0,0.11057971]
[1731773044132,0.3608,90433.0,90427.0,0.055273]
[1731773044330,0.3608,90433.0,90417.0,0.3911]
[1731773044621,0.055272,90430.0,90426.0,0.055274]
[1731773044814,0.055272,90430.0,90416.0,0.3608]
[1731773044815,0.055272,90430.0,90427.0,0.055273]
[1731773045010,0.055272,90430.0,90427.0,0.1658521]
[1731773045416,0.055272,90430.0,90428.0,0.055273]
[1731773046520,0.055272,90430.0,90416.0,0.3608]
[1731773046521,0.45728,90433.0,90429.0,0.055272]
[1731773046726,0.055271,90432.0,90429.0,0.055272]
[1731773047225,0.45732,90433.0,90417.0,0.055279]
[1731773047427,0.45732,90433.0,90418.0,0.01036803]
[1731773047428,0.055278,90419.0,90418.0,0.01036803]
[1731773047620,0.055278,90419.0,90417.0,0.16586115]
[1731773047820,0.055278,90419.0,90417.0,0.055279]
[1731773048218,0.055278,90419.0,90418.0,0.11058215]
[1731773048414,0.3608,90424.0,90412.0,0.055282]
[1731773048618,0.3608,90416.0,90413.0,0.0103694]
[1731773048818,0.055282,90414.0,90412.0,0.055282]
[1731773049035,0.055283,90412.0,90410.0,0.00165902]
[1731773051423,0.41562386,90416.0,90410.0,0.00165902]
[1731773051622,0.41490386,90416.0,90411.0,0.055283]
[1731773051832,0.055281,90414.0,90411.0,0.055283]
[1731773052133,0.055283,90411.0,90410.0,0.00165902]
[1731773052323,0.055281,90415.0,90410.0,0.05694302]
[1731773052525,0.41562386,90416.0,90410.0,0.00165902]
[1731773052833,0.055283,90412.0,90410.0,0.00165902]
[1731773053722,0.055289,90401.0,90400.0,0.1]
[1731773054029,0.09572,90401.0,90400.0,0.1]
[1731773055734,0.3608,90405.0,90403.0,0.055288]
[1731773056127,0.416087,90405.0,90403.0,0.055288]
[1731773056327,0.416087,90405.0,90404.0,0.11061457]
[1731773057439,0.47185385,90405.0,90403.0,0.055288]
[1731773058539,0.47185385,90405.0,90400.0,0.1]
[1731773058540,0.09572,90404.0,90400.0,0.1]
[1731773058740,0.055289,90401.0,90400.0,0.1]
[1731773060436,0.09572,90404.0,90403.0,0.055288]
[1731773060836,0.41728685,90405.0,90403.0,0.055288]
[1731773061141,0.47185385,90405.0,90403.0,0.055288]
[1731773061324,0.41656685,90405.0,90403.0,0.055288]
[1731773061636,0.41656685,90405.0,90404.0,0.11061457]
[1731773063933,0.00072,90413.0,90412.0,0.055282]
[1731773064132,0.05454845,90419.0,90418.0,0.055279]
[1731773064336,0.055275,90424.0,90421.0,0.055277]
[1731773064528,0.055275,90424.0,90422.0,0.055276]
[1731773065037,0.05728673,90425.0,90406.0,0.19754364]
[1731773065038,0.05728673,90425.0,90424.0,0.055275]
[1731773065736,0.05728673,90425.0,90424.0,0.16586633]
[1731773066043,0.3608,90430.0,90429.0,0.055272]
[1731773066343,0.3608,90430.0,90424.0,0.17623471]
[1731773066344,0.05626705,90432.0,90431.0,0.055271]
[1731773066644,0.3608,90459.0,90446.0,0.055262]
[1731773066645,0.09572,90447.0,90446.0,0.055262]
[1731773066836,0.09572,90447.0,90446.0,0.06562817]
[1731773067033,0.09572,90447.0,90446.0,0.055262]
[1731773067339,0.055261,90448.0,90446.0,0.06562862]
[1731773067533,0.3608,90451.0,90448.0,0.05526]
[1731773067739,0.3608,90451.0,90450.0,0.055259]
[1731773067931,0.05607877,90453.0,90452.0,0.055258]
[1731773067932,0.00165908,90453.0,90452.0,0.055258]
[1731773068442,0.00165908,90453.0,90452.0,0.17618157]
[1731773070445,0.36245908,90453.0,90452.0,0.01036587]
[1731773070844,0.45813908,90453.0,90452.0,0.01036587]
[1731773071043,0.45813908,90453.0,90446.0,0.25310847]
[1731773071336,0.05526,90449.0,90447.0,0.11055526]
[1731773071535,0.45813908,90453.0,90447.0,0.11055526]
[1731773071736,0.45813908,90453.0,90447.0,0.16581626]
[1731773071938,0.45889908,90453.0,90448.0,0.00370168]
[1731773072136,0.45813908,90453.0,90449.0,0.00370168]
[1731773072438,0.36245908,90453.0,90451.0,0.055259]
[1731773072639,0.36245908,90453.0,90452.0,0.00370168]
[1731773072840,0.36245908,90453.0,90452.0,0.0140674]
[1731773072841,0.00165908,90453.0,90452.0,0.0140674]
[1731773073235,0.00165908,90453.0,90452.0,0.1246251]
[1731773075055,0.00165908,90453.0,90452.0,0.12092342]
[1731773075435,0.004,90455.0,90452.0,0.45260342]
[1731773075633,0.004,90455.0,90453.0,0.39730272]
[1731773075834,0.004,90455.0,90454.0,0.01407668]
[1731773076052,0.004,90455.0,90454.0,0.34575668]
[1731773076247,0.004,90455.0,90454.0,0.45631194]
[1731773076945,0.004,90455.0,90454.0,0.45260098]
[1731773077545,0.004,90455.0,90454.0,0.19735415]
[1731773077753,0.06064894,90455.0,90454.0,0.11055281]
[1731773078054,0.06064894,90455.0,90454.0,0.00369394]
[1731773078348,0.06064894,90455.0,90454.0,0.11424675]
[1731773078942,0.06064894,90455.0,90454.0,0.12461127]
[1731773079344,0.004,90455.0,90454.0,0.12461127]
[1731773079545,0.004,90455.0,90454.0,0.80668675]
[1731773079747,0.004,90455.0,90454.0,0.81704989]
[1731773080053,0.004,90455.0,90454.0,0.81335595]
[1731773081056,0.00400077,90463.0,90454.0,0.44588581]
[1731773081351,0.416055,90457.0,90455.0,0.01405738]
[1731773081648,0.416055,90457.0,90456.0,0.003693]
[1731773081853,0.055257,90454.0,90446.0,0.055262]
[1731773082038,0.3608,90457.0,90446.0,0.055262]
[1731773082039,0.055259,90451.0,90446.0,0.055262]
[1731773082241,0.055259,90451.0,90447.0,0.11055281]
[1731773082446,0.3608,90457.0,90447.0,0.11055281]
[1731773082648,0.05526,90449.0,90437.0,0.19720979]
[1731773082850,0.05526,90449.0,90441.0,0.11055831]
[1731773083049,0.05526,90449.0,90442.0,0.01036586]
[1731773083349,0.05526,90449.0,90443.0,0.01036586]
[1731773083567,0.05526,90449.0,90444.0,0.01036586]
[1731773083847,0.05526,90449.0,90439.0,0.19720979]
[1731773084042,0.05526,90449.0,90445.0,0.11056443]
[1731773084242,0.05526,90449.0,90439.0,0.19720979]
[1731773084443,0.05526,90449.0,90440.0,0.20757561]
[1731773084745,0.004,90460.0,90444.0,0.3608]
[1731773085052,0.004,90460.0,90445.0,0.01036556]
[1731773085053,0.3608,90456.0,90445.0,0.01036556]
[1731773085251,0.3608,90456.0,90446.0,0.01036556]
[1731773085552,0.3608,90456.0,90447.0,0.01036556]
[1731773085750,0.3608,90456.0,90444.0,0.55800979]
[1731773086051,0.055259,90451.0,90449.0,0.05526]
[1731773086452,0.3608,90456.0,90451.0,0.055259]
[1731773086646,0.055257,90454.0,90451.0,0.055259]
[1731773087355,0.055257,90454.0,90410.0,0.52717067]
[1731773087356,0.3608,90452.0,90432.0,0.19749059]
[1731773087549,0.3608,90433.0,90421.0,0.19749059]
[1731773087749,0.3608,90428.0,90417.0,0.19749059]
[1731773087949,0.3608,90418.0,90413.0,0.055282]
[1731773088259,0.055281,90416.0,90413.0,0.055282]
[1731773088465,0.055281,90416.0,90412.0,0.19749059]
[1731773088466,0.055281,90416.0,90414.0,0.1658815]
[1731773088759,0.3608,90418.0,90416.0,0.055279]
[1731773088961,0.41681167,90418.0,90416.0,0.055279]
[1731773089361,0.05601167,90418.0,90417.0,0.01406807]
[1731773089674,0.055272,90429.0,90428.0,0.055273]
[1731773089876,0.10998454,90429.0,90428.0,0.055273]
[1731773090060,0.10998454,90429.0,90428.0,0.0036989]
[1731773090253,0.10998454,90429.0,90428.0,0.00369867]
[1731773090559,0.055273,90428.0,90425.0,0.055274]
[1731773091560,0.055273,90428.0,90426.0,0.17622922]
[1731773091751,0.055273,90428.0,90427.0,0.01036817]
[1731773092148,0.055273,90428.0,90411.0,0.3294484]
[1731773092354,0.055284,90410.0,90409.0,0.055284]
[1731773092660,0.055284,90410.0,90401.0,0.3608]
[1731773092661,0.055284,90410.0,90405.0,0.055286]
[1731773092863,0.055284,90410.0,90406.0,0.06565642]
[1731773093051,0.3608,90412.0,90408.0,0.055285]
[1731773093249,0.3608,90412.0,90410.0,0.055284]
[1731773094060,0.15096,90416.0,90410.0,0.055284]
[1731773094253,0.15096,90416.0,90411.0,0.11060968]
[1731773094451,0.51176,90416.0,90411.0,0.11060968]
[1731773094761,0.51176,90416.0,90412.0,0.01036988]
[1731773095058,0.51176,90416.0,90410.0,0.055284]
[1731773095259,0.055281,90415.0,90410.0,0.055284]
[1731773095560,0.055281,90414.0,90411.0,0.11060234]
[1731773095764,0.055281,90414.0,90411.0,0.16588534]
[1731773096262,0.055281,90414.0,90411.0,0.055283]
[1731773096462,0.055281,90414.0,90400.0,0.1]
[1731773096463,0.055281,90414.0,90412.0,0.09750286]
[1731773096665,0.51266178,90416.0,90400.0,0.1]
[1731773096666,0.055289,90401.0,90400.0,0.1]
[1731773096855,0.511769,90401.0,90400.0,0.1]
[1731773097055,0.511769,90401.0,90400.0,0.11037064]
[1731773097457,0.843609,90401.0,90400.0,0.11037064]
[1731773097665,0.843609,90401.0,90400.0,0.1]
[1731773098168,0.56763448,90401.0,90400.0,0.1]
[1731773098364,0.89947448,90401.0,90400.0,0.1]
[1731773099161,0.56763448,90401.0,90400.0,0.1]
[1731773101663,0.56763448,90401.0,90400.0,1e-08]
[1731773101664,0.89955667,90401.0,90400.0,1e-08]
[1731773101867,0.89955667,90401.0,90373.0,0.0051]
[1731773101868,0.84426767,90401.0,90373.0,0.0051]
[1731773102084,0.055305,90375.0,90374.0,0.01037405]
[1731773102262,0.055305,90375.0,90374.0,0.11061885]
[1731773102580,0.055305,90375.0,90372.0,0.055307]
[1731773102877,0.055305,90375.0,90373.0,0.11063537]
[1731773103575,0.055307,90371.0,90367.0,0.05531]
[1731773103873,0.416107,90371.0,90370.0,0.0017195]
[1731773104465,0.511827,90371.0,90370.0,0.0017195]
[1731773104658,0.511827,90371.0,90347.0,0.0051]
[1731773104659,0.055321,90349.0,90347.0,0.0051]
[1731773104864,0.416119,90353.0,90351.0,0.05532]
[1731773105060,0.055316,90357.0,90352.0,0.055319]
[1731773105272,0.3608,90353.0,90344.0,0.055323]
[1731773105465,0.3608,90353.0,90335.0,0.00547541]
[1731773105663,0.3608,90353.0,90332.0,0.3608]
[1731773105664,0.3608,90353.0,90352.0,0.055319]
[1731773105873,0.055316,90357.0,90354.0,0.055317]
[1731773106087,0.3608,90363.0,90341.0,0.3608]
[1731773106375,0.055315,90359.0,90342.0,0.11067394]
[1731773106575,0.055315,90359.0,90355.0,0.055317]
[1731773106972,0.055316,90358.0,90355.0,0.055317]
[1731773107172,0.3608,90363.0,90341.0,0.3608]
[1731773107378,0.3608,90363.0,90362.0,0.055313]
[1731773107379,0.05487029,90363.0,90362.0,0.055313]
[1731773107678,0.055304,90377.0,90354.0,0.055318]
[1731773107876,0.09572,90376.0,90372.0,0.055307]
[1731773108080,0.41505613,90383.0,90360.0,0.3608]
[1731773108275,0.41505613,90383.0,90381.0,0.055301]
[1731773108869,0.41505613,90383.0,90382.0,0.11065129]
[1731773110573,0.022214,90401.0,90382.0,0.80337129]
[1731773110876,0.055291,90399.0,90382.0,0.3608]
[1731773111071,0.055291,90399.0,90394.0,0.055293]
[1731773111273,0.055292,90397.0,90394.0,0.055293]
[1731773111478,0.17277879,90401.0,90382.0,0.3608]
[1731773111676,0.05492698,90401.0,90399.0,0.05529]
[1731773112073,8.219e-05,90401.0,90399.0,0.05529]
[1731773112274,0.3608,90405.0,90404.0,0.055287]
[1731773112579,0.3608,90422.0,90404.0,0.06565811]
[1731773112778,0.05574098,90410.0,90405.0,0.01037111]
[1731773112980,0.05574098,90410.0,90405.0,0.01037074]
[1731773113281,0.05574098,90410.0,90409.0,0.055284]
[1731773113482,0.055278,90419.0,90416.0,0.05528]
[1731773115387,0.055278,90419.0,90403.0,0.3608]
[1731773115577,0.055278,90419.0,90417.0,0.055279]
[1731773116180,0.41685078,90422.0,90420.0,0.055277]
[1731773116382,0.41685078,90422.0,90421.0,0.01036961]
[1731773116687,0.41685078,90422.0,90421.0,0.01404987]
[1731773116884,0.41685078,90422.0,90421.0,0.12464731]
[1731773117883,0.00011915,90432.0,90426.0,0.055274]
[1731773118079,0.00411915,90432.0,90431.0,0.055271]
[1731773118388,0.4766285,90432.0,90431.0,0.01404879]
[1731773118684,0.42018915,90432.0,90431.0,0.00368026]
[1731773119587,0.51586915,90432.0,90431.0,0.00368026]
[1731773120386,0.57069373,90432.0,90431.0,0.00368026]
[1731773120689,0.055272,90430.0,90423.0,0.055275]
[1731773120895,0.3608,90424.0,90423.0,0.055275]
[1731773121075,0.416075,90424.0,90423.0,0.01036883]
[1731773121279,0.747835,90424.0,90404.0,0.3345484]
[1731773121477,0.055288,90404.0,90402.0,0.00165912]
[1731773121778,0.3608,90405.0,90400.0,8.219e-05]
[1731773121779,0.055289,90401.0,90400.0,8.219e-05]
[1731773122185,0.387129,90401.0,90400.0,8.219e-05]
[1731773122395,0.387129,90401.0,90381.0,0.0051]
[1731773122580,0.055305,90376.0,90373.0,0.3608]
[1731773122783,0.055307,90373.0,90369.0,0.055308]
[1731773123188,0.055307,90373.0,90372.0,0.11061885]
[1731773123496,0.055307,90372.0,90361.0,0.3847624]
[1731773123983,0.055307,90372.0,90361.0,0.3294484]
[1731773124494,0.055307,90372.0,90359.0,0.26327011]
[1731773124690,0.055307,90372.0,90359.0,0.31858511]
[1731773124889,0.09568,90371.0,90368.0,0.055309]
[1731773125097,0.09568,90371.0,90359.0,0.26327011]
[1731773125892,0.72236,90375.0,90359.0,0.26327011]
[1731773125893,0.05646649,90372.0,90370.0,0.16596357]
[1731773126080,0.09568,90374.0,90370.0,0.16596357]
[1731773126081,0.09568,90374.0,90370.0,0.11065557]
[1731773126280,0.09568,90374.0,90365.0,0.3608]
[1731773126281,0.3608,90383.0,90365.0,0.3608]
[1731773126476,0.09568,90382.0,90366.0,0.11065374]
[1731773126894,0.00072,90383.0,90373.0,0.3608]
[1731773127191,0.00072,90383.0,90379.0,0.055302]
[1731773127384,0.05402777,90385.0,90379.0,0.055302]
[1731773127585,0.055299,90386.0,90379.0,0.055302]
[1731773128100,0.055299,90386.0,90380.0,0.11064639]
[1731773129599,0.3608,90386.0,90373.0,0.3608]
[1731773129893,0.3608,90386.0,90381.0,0.11064027]
[1731773130188,0.3608,90386.0,90373.0,0.3608]
[1731773130491,0.09572,90390.0,90384.0,0.055299]
[1731773130680,0.3608,90394.0,90376.0,0.26327011]
[1731773130877,0.3608,90394.0,90392.0,0.055294]
[1731773131292,0.3608,90394.0,90393.0,0.01037189]
[1731773131586,0.3608,90394.0,90393.0,0.12099992]
[1731773131991,0.09572,90403.0,90396.0,0.055292]
[1731773132288,0.022138,90395.0,90394.0,0.055293]
[1731773132495,0.10509,90396.0,90394.0,0.01037073]
[1731773132681,0.10509,90396.0,90395.0,0.06936177]
[1731773132883,0.10509,90396.0,90395.0,0.85298926]
[1731773133090,0.10509,90396.0,90395.0,0.74223499]
[1731773133290,0.10509,90396.0,90395.0,0.41290721]
[1731773133490,0.05457918,90413.0,90412.0,0.055282]
[1731773133700,0.09568,90416.0,90412.0,0.055282]
[1731773133701,0.09568,90416.0,90412.0,0.06935077]
[1731773133895,0.09568,90416.0,90413.0,0.01406877]
[1731773134081,0.09568,90416.0,90414.0,0.01037073]
[1731773134281,0.09568,90416.0,90414.0,0.01406877]
[1731773134685,0.05816999,90415.0,90414.0,0.01406877]
[1731773134892,0.00166012,90415.0,90414.0,0.12467049]
[1731773135696,0.00166012,90415.0,90414.0,0.12097245]
[1731773136296,0.10506,90416.0,90415.0,0.055281]
[1731773136491,0.10506,90416.0,90415.0,0.39745173]
[1731773136888,0.10506,90416.0,90415.0,0.50805345]
[1731773137591,0.10506,90416.0,90415.0,0.17625345]
[1731773137792,0.10506,90416.0,90415.0,0.50805345]
[1731773137995,0.10506,90416.0,90415.0,0.17625345]
[1731773138192,0.10506,90416.0,90415.0,0.50805345]
[1731773138412,0.10506,90416.0,90415.0,0.89915345]
[1731773138786,0.10506,90416.0,90415.0,1.24539866]
[1731773138991,0.10506,90416.0,90415.0,1.64073674]
[1731773139293,0.10506,90416.0,90415.0,1.24539866]
[1731773139688,0.004,90424.0,90423.0,0.055276]
[1731773139987,0.004,90424.0,90423.0,0.06933048]
[1731773140294,0.004,90424.0,90423.0,0.17993098]
[1731773140688,0.004,90424.0,90423.0,0.44347015]
[1731773141698,0.004,90424.0,90423.0,0.17993098]
[1731773142394,0.004,90424.0,90423.0,0.44350082]
[1731773142591,0.004,90424.0,90423.0,0.17996165]
[1731773143097,0.004,90424.0,90423.0,0.01408515]
[1731773143694,0.004,90424.0,90423.0,0.01037073]
[1731773143902,0.162275,90425.0,90423.0,0.01037073]
[1731773144099,0.162275,90425.0,90424.0,0.01037073]
[1731773144497,0.854835,90425.0,90405.0,0.26353917]
[1731773144698,0.055285,90409.0,90406.0,0.01036933]
[1731773144997,0.055286,90406.0,90404.0,0.00165903]
[1731773145200,0.055286,90406.0,90405.0,0.01037009]
[1731773145400,0.09568,90412.0,90405.0,0.12095958]
[1731773145698,0.3608,90413.0,90405.0,0.12095958]
[1731773145699,0.09568,90411.0,90405.0,0.11058949]
[1731773145890,0.09568,90419.0,90407.0,0.62433917]
[1731773146095,0.46852,90425.0,90412.0,0.055282]
[1731773146096,0.4678,90425.0,90412.0,0.055282]
[1731773146397,0.09568,90424.0,90412.0,0.055282]
[1731773146607,0.4678,90425.0,90413.0,0.11061335]
[1731773146797,0.4678,90425.0,90414.0,0.00368157]
[1731773146798,0.09568,90424.0,90414.0,0.00368157]
[1731773146999,0.055279,90418.0,90415.0,0.00368157]
[1731773147199,0.055279,90418.0,90413.0,0.16589535]
[1731773147200,0.055279,90418.0,90416.0,0.00368157]
[1731773147500,0.09568,90424.0,90417.0,0.01405119]
[1731773147706,0.055276,90423.0,90418.0,0.01405119]
[1731773147997,0.055276,90423.0,90419.0,0.01405109]
[1731773148207,0.09568,90424.0,90421.0,0.055277]
[1731773148405,0.09568,90424.0,90404.0,0.00165903]
[1731773148406,0.52235,90425.0,90424.0,0.055275]
[1731773148593,0.16155,90425.0,90424.0,0.05897259]
[1731773148792,0.16155,90425.0,90424.0,0.06934135]
[1731773149206,0.16155,90425.0,90424.0,0.17623753]
[1731773149501,0.16155,90425.0,90424.0,0.17993587]
[1731773149704,0.107,90425.0,90424.0,0.17623753]
[1731773150800,0.107,90425.0,90424.0,0.1799362]
[1731773151896,0.107,90425.0,90424.0,0.18600475]
[1731773154201,0.107,90425.0,90424.0,0.02013598]
[1731773154794,0.107,90425.0,90424.0,0.01406743]
[1731773155395,0.20268,90425.0,90424.0,0.00369867]
[1731773159400,0.055284,90410.0,90407.0,0.32941183]
[1731773159602,0.20268,90425.0,90408.0,0.01410497]
[1731773159603,0.055282,90412.0,90408.0,0.01410497]
[1731773159798,0.055282,90412.0,90406.0,0.32941183]
[1731773159799,0.416084,90409.0,90407.0,0.11058949]
[1731773159997,0.416084,90409.0,90408.0,0.01407173]
[1731773161003,0.416084,90409.0,90408.0,0.12468079]
[1731773161211,0.441604,90409.0,90408.0,0.01407173]
[1731773161396,0.055286,90406.0,90404.0,0.30010605]
[1731773161597,0.055286,90406.0,90404.0,0.00165903]
[1731773163009,0.055288,90403.0,90400.0,0.055289]
[1731773163198,0.07742,90405.0,90392.0,0.3608]
[1731773163403,0.07742,90405.0,90404.0,0.055287]
[1731773163999,0.07742,90405.0,90396.0,0.055292]
[1731773164200,0.055291,90398.0,90396.0,0.055292]
[1731773164405,0.055291,90398.0,90396.0,0.1106213]
[1731773164606,0.055291,90398.0,90382.0,0.3911]
[1731773164607,0.055291,90398.0,90394.0,0.055293]
[1731773165111,0.3608,90399.0,90391.0,0.11062314]
[1731773165306,0.3608,90399.0,90381.0,0.055301]
[1731773165504,0.3608,90384.0,90379.0,0.39529131]
[1731773165707,0.055299,90385.0,90383.0,0.0553]
[1731773166405,0.09568,90387.0,90386.0,0.055298]
[1731773166913,0.15060829,90387.0,90376.0,0.39529131]
[1731773167111,0.20590629,90387.0,90386.0,0.11063905]
[1731773167308,0.055301,90382.0,90379.0,0.055302]
[1731773167509,0.15060829,90387.0,90371.0,0.39695105]
[1731773167510,0.055307,90372.0,90371.0,0.39695105]
[1731773167704,0.3608,90372.0,90371.0,0.00165974]
[1731773168213,0.09568,90375.0,90372.0,0.055307]
[1731773168905,0.09568,90375.0,90373.0,0.1106519]
[1731773169623,0.055307,90372.0,90371.0,0.00165974]
[1731773169804,0.416107,90372.0,90371.0,0.00165974]
[1731773170201,0.055307,90372.0,90371.0,0.00165974]
[1731773171804,0.3608,90373.0,90371.0,0.00165974]
[1731773172018,0.3608,90373.0,90372.0,0.055307]
[1731773172614,0.3608,90373.0,90372.0,0.16596013]
[1731773172802,0.055295,90391.0,90372.0,0.16596013]
[1731773173010,0.3608,90389.0,90373.0,0.0103737]
[1731773173306,0.3608,90400.0,90373.0,0.0103737]
[1731773173307,0.09568,90395.0,90392.0,0.055294]
[1731773173514,0.09568,90395.0,90379.0,0.3608]
[1731773173814,0.43821851,90400.0,90379.0,0.3608]
[1731773173815,0.41608629,90400.0,90399.0,0.05529]
[1731773174202,0.41608629,90400.0,90399.0,0.16593272]
[1731773174406,0.080804,90409.0,90399.0,0.16593272]
[1731773174407,0.02552,90409.0,90399.0,0.16593272]
[1731773174619,0.02552,90409.0,90404.0,0.055287]
[1731773175306,0.02552,90409.0,90404.0,0.16590708]
[1731773176011,0.02552,90409.0,90404.0,0.16958709]
[1731773176409,0.02552,90409.0,90404.0,0.00368001]
[1731773176410,0.055286,90406.0,90404.0,0.00368001]
[1731773176610,0.150966,90406.0,90404.0,0.00368001]
[1731773177015,0.150966,90406.0,90390.0,0.3911]
[1731773177016,0.09568,90406.0,90390.0,0.3911]
[1731773177217,0.3608,90398.0,90390.0,0.3911]
[1731773177517,0.3608,90398.0,90393.0,0.11061396]
[1731773177710,0.3608,90398.0,90390.0,0.3911]
[1731773177911,0.3608,90398.0,90391.0,0.11062681]
[1731773178115,0.055293,90395.0,90391.0,0.11062681]
[1731773179118,0.3608,90398.0,90391.0,0.11062681]
[1731773179319,0.09568,90406.0,90392.0,0.01037156]
[1731773179521,0.09568,90406.0,90400.0,0.055289]
[1731773179716,0.3608,90401.0,90393.0,0.055293]
[1731773179915,0.055292,90396.0,90393.0,0.055293]
[1731773180123,0.055292,90396.0,90394.0,0.11062619]
[1731773181729,0.416089,90401.0,90394.0,0.16591919]
[1731773182222,0.02554,90400.0,90394.0,0.055293]
[1731773182410,0.02554,90400.0,90399.0,0.05529]
[1731773182615,0.02554,90400.0,90399.0,0.38717]
[1731773182823,0.02554,90400.0,90399.0,0.39754163]
[1731773183025,0.02554,90400.0,90399.0,0.51184952]
[1731773183221,0.02554,90400.0,90399.0,1.24065718]
[1731773183421,0.02554,90400.0,90399.0,0.84536587]
[1731773183615,0.02554,90400.0,90399.0,1.24147871]
[1731773183825,0.004,90407.0,90404.0,0.055287]
[1731773184017,0.004,90407.0,90404.0,0.38880335]
[1731773184327,0.004,90407.0,90404.0,0.39917498]
[1731773184632,0.004,90407.0,90404.0,0.50979506]
[1731773185126,0.004,90407.0,90404.0,0.5135107]
[1731773185314,0.004,90407.0,90404.0,0.90981955]
[1731773185515,0.004,90407.0,90404.0,0.51429063]
[1731773186526,0.004,90407.0,90404.0,0.51428418]
[1731773187719,0.004,90407.0,90404.0,0.90979798]
[1731773188020,0.004,90407.0,90404.0,0.51349187]
[1731773188417,0.004,90407.0,90404.0,0.90979798]
[1731773189124,0.37184,90441.0,90417.0,0.055279]
[1731773189125,0.416071,90431.0,90417.0,0.055279]
[1731773189326,0.09564,90426.0,90417.0,0.05898819]
[1731773189723,0.09564,90426.0,90417.0,0.16958624]
[1731773190025,0.09564,90426.0,90417.0,0.51415003]
[1731773190239,0.09564,90428.0,90417.0,0.52022662]
[1731773190523,0.09564,90428.0,90417.0,0.91637666]
[1731773190931,0.05741603,90418.0,90417.0,0.91637666]
[1731773191227,0.00165975,90418.0,90417.0,0.91637666]
[1731773191424,0.00165975,90418.0,90417.0,0.5142522]
[1731773191626,0.09229975,90428.0,90417.0,0.46507308]
[1731773191821,0.09229975,90428.0,90426.0,0.055273]
[1731773192023,0.09564,90428.0,90427.0,0.06945256]
[1731773192324,0.41603643,90431.0,90430.0,0.055271]
[1731773192529,0.41603643,90431.0,90430.0,0.07555044]
[1731773192721,0.41603643,90431.0,90430.0,0.06518224]
[1731773193031,0.05523643,90431.0,90430.0,0.18613191]
[1731773193331,0.00011915,90432.0,90430.0,0.18613191]
[1731773193629,0.00011915,90432.0,90431.0,0.02027876]
[1731773194222,0.00011915,90432.0,90431.0,0.13086091]
[1731773195022,0.00011915,90432.0,90431.0,0.13091603]
[1731773195423,0.05445968,90432.0,90431.0,0.13091603]
[1731773195728,0.00011915,90432.0,90431.0,0.13091603]
[1731773195933,0.05538915,90432.0,90431.0,0.13091603]
[1731773196124,0.05538915,90432.0,90431.0,0.00996636]
[1731773196526,0.00011915,90432.0,90431.0,0.00996636]
[1731773196724,0.05591967,90432.0,90431.0,0.00996636]
[1731773197030,0.00011915,90432.0,90431.0,0.00996636]
[1731773197625,0.00011915,90432.0,90415.0,0.33002531]
[1731773197626,0.05528244,90432.0,90415.0,0.33002531]
[1731773197821,0.05528,90417.0,90416.0,0.01010658]
[1731773198029,0.055281,90415.0,90407.0,0.3911]
[1731773198331,0.055281,90415.0,90408.0,0.11058093]
[1731773199131,0.09564,90421.0,90408.0,0.11058093]
[1731773199132,0.05614193,90417.0,90408.0,0.11058093]
[1731773199322,0.055278,90419.0,90412.0,0.055282]
[1731773199522,0.055278,90419.0,90414.0,0.055281]
[1731773199930,0.055278,90419.0,90415.0,0.1106005]
[1731773200733,0.07741,90418.0,90415.0,0.1658805]
[1731773201035,0.07741,90418.0,90415.0,0.05528]
[1731773201428,0.07741,90418.0,90416.0,0.11059867]
[1731773202232,0.07741,90418.0,90416.0,0.16587867]
[1731773202930,0.055279,90417.0,90416.0,0.11059867]
[1731773203127,0.055279,90417.0,90409.0,0.33002531]
[1731773203128,0.07741,90418.0,90406.0,0.33002531]
[1731773203329,0.07741,90418.0,90402.0,0.055288]
[1731773203330,0.3608,90409.0,90402.0,0.055288]
[1731773203523,0.3608,90409.0,90406.0,0.33042507]
[1731773203524,0.150925,90408.0,90406.0,0.33042507]
[1731773203735,0.150925,90408.0,90407.0,0.01037035]
[1731773203937,0.150925,90408.0,90398.0,0.33120328]
[1731773204129,0.3608,90399.0,90398.0,0.00165919]
[1731773204436,0.41609,90399.0,90398.0,0.00165919]
[1731773205127,0.41609,90399.0,90382.0,0.39615004]
[1731773205128,0.0553,90383.0,90382.0,0.39615004]
[1731773205327,0.09564,90383.0,90373.0,0.055306]
[1731773205541,0.09564,90383.0,90371.0,0.00165974]
[1731773205542,0.055307,90372.0,90371.0,0.00165974]
[1731773207140,0.3608,90377.0,90361.0,0.055313]
[1731773207340,0.3608,90365.0,90361.0,0.055313]
[1731773207931,0.3608,90365.0,90362.0,0.055313]
[1731773208127,0.3608,90365.0,90363.0,0.055312]
[1731773208526,0.3608,90365.0,90364.0,0.11066476]
[1731773208736,0.09564,90369.0,90364.0,0.11066476]
[1731773208945,0.09564,90369.0,90365.0,0.055311]
[1731773209241,0.09564,90369.0,90349.0,0.7519]
[1731773209242,0.09564,90369.0,90367.0,0.05531]
[1731773209547,0.09564,90369.0,90349.0,0.7519]
[1731773209548,0.05487263,90369.0,90366.0,0.11066353]
[1731773209737,0.3608,90377.0,90366.0,0.11066353]
[1731773209738,0.0956,90370.0,90366.0,0.11066353]
[1731773209940,0.0956,90375.0,90358.0,0.3608]
[1731773210133,0.0956,90375.0,90374.0,0.055305]
[1731773210743,0.0956,90375.0,90374.0,0.16595568]
[1731773211328,0.41597789,90377.0,90374.0,0.16595568]
[1731773211537,0.0956,90376.0,90374.0,0.16595568]
[1731773211736,0.00166038,90384.0,90380.0,0.055301]
[1731773211942,0.00166038,90384.0,90381.0,0.055301]
[1731773212135,0.00166038,90384.0,90379.0,0.055302]
[1731773212439,0.00166038,90384.0,90382.0,0.11064945]
[1731773212637,0.00166038,90384.0,90379.0,0.055302]
[1731773213037,0.00166038,90384.0,90380.0,0.11064211]
[1731773214946,0.00166038,90384.0,90376.0,0.19773186]
[1731773215137,0.00166038,90384.0,90377.0,0.11064149]